bitfinex-derivatives/quotes_ETHF0:USTF0_20230101
["timestamp","ask_amount","ask_price","bid_price","bid_amount"]
[1672535930442,3.13472729,1195.4,1195.3,6.50891137]
[1672535930767,3.13472729,1195.4,1195.3,7.99205153]
[1672535932867,2.50892849,1195.4,1195.3,8.61944919]
[1672535933913,4.3905975,1195.4,1195.3,8.61944919]
[1672535934122,2.50892849,1195.4,1195.3,8.61944919]
[1672535934338,4.38997907,1195.4,1195.3,8.61944919]
[1672535935607,1.88105058,1195.4,1195.3,8.61944919]
[1672535935809,4.38997907,1195.4,1195.3,8.61944919]
[1672535936130,1.88105058,1195.4,1195.3,8.61944919]
[1672535938131,1.88105058,1195.4,1195.3,11.12588668]
[1672535940446,4.38997907,1195.4,1195.3,7.98957765]
[1672535941390,2.50892849,1195.4,1195.3,6.50643749]
[1672535941600,2.50892849,1195.4,1195.3,8.38627379]
[1672535942125,4.388616,1195.4,1195.3,7.98949147]
[1672535943387,4.388616,1195.4,1195.3,6.50643749]
[1672535943698,4.388616,1195.4,1195.3,7.9895108]
[1672535943898,2.50892849,1195.4,1195.3,6.50643749]
[1672535944224,4.38860144,1195.4,1195.3,7.98952681]
[1672535944967,4.38860144,1195.4,1195.3,6.50643749]
[1672535945178,4.38860144,1195.4,1195.3,7.98950784]
[1672535945390,4.38860144,1195.4,1195.3,6.50643749]
[1672535947596,4.38860144,1195.4,1195.3,7.98951291]
[1672535948862,1.87967295,1195.4,1195.3,7.98951291]
[1672535956009,4.38860144,1195.4,1195.3,7.98951291]
[1672535957374,1.87967295,1195.4,1195.3,7.98951291]
[1672535957788,1.87967295,1195.4,1195.3,11.12582194]
[1672535959896,1.87967295,1195.4,1195.3,8.61938445]
[1672535960213,1.87967295,1195.4,1195.3,11.1257301]
[1672535960741,4.38860144,1195.4,1195.3,11.1257301]
[1672535961263,1.87967295,1195.4,1195.3,11.1257301]
[1672535961466,4.38860144,1195.4,1195.3,11.1257301]
[1672535962096,4.38860144,1195.4,1195.3,11.12628427]
[1672535962314,2.50892849,1195.4,1195.3,11.12628427]
[1672535963261,4.38973781,1195.4,1195.3,11.12628427]
[1672535963687,4.38973781,1195.4,1195.3,8.61938445]
[1672535963993,4.38973781,1195.4,1195.3,11.12580634]
[1672535964197,4.38973781,1195.4,1195.3,8.61938445]
[1672535965152,2.50892849,1195.4,1195.3,8.61938445]
[1672535967053,2.50892849,1195.4,1195.3,7.99061003]
[1672535967254,2.50892849,1195.4,1195.3,11.12691906]
[1672535967785,2.50892849,1195.4,1195.3,8.61938445]
[1672535975985,5.64365578,1195.4,1195.3,8.61938445]
[1672535976511,2.50892849,1195.4,1195.3,8.61938445]
[1672535979032,5.64365578,1195.4,1195.3,8.61938445]
[1672535979243,2.50892849,1195.4,1195.3,8.61938445]
[1672535979447,5.64365578,1195.4,1195.3,8.61938445]
[1672535979657,2.50892849,1195.4,1195.3,8.61938445]
[1672535988384,5.64365578,1195.4,1195.3,8.61938445]
[1672535988805,5.64513916,1195.4,1195.3,8.61938445]
[1672535989017,2.51041187,1195.4,1195.3,8.61938445]
[1672535998596,5.64513916,1195.4,1195.3,8.61938445]
[1672535999440,2.51041187,1195.4,1195.3,8.61938445]
[1672536000803,5.64513916,1195.4,1195.3,8.61938445]
[1672536001434,3.13472729,1195.4,1195.3,8.61938445]
[1672536001644,3.13472729,1195.4,1195.3,11.12531889]
[1672536003746,3.13472729,1195.4,1195.3,7.98900986]
[1672536005534,3.13472729,1195.4,1195.3,11.12531889]
[1672536005743,3.13472729,1195.4,1195.3,7.98900986]
[1672536006686,3.13472729,1195.4,1195.3,11.12531889]
[1672536006897,3.13472729,1195.4,1195.3,7.98900986]
[1672536009525,2.50951823,1195.4,1195.3,11.12531889]
[1672536009846,5.64424552,1195.4,1195.3,7.98900986]
[1672536010047,5.64424552,1195.4,1195.3,11.12531889]
[1672536010683,5.64427601,1195.4,1195.3,7.98900986]
[1672536010892,3.13472729,1195.4,1195.3,7.98900986]
[1672536011530,5.64428187,1195.4,1195.3,7.98900986]
[1672536011733,3.13472729,1195.4,1195.3,7.98900986]
[1672536015631,5.64401554,1195.4,1195.3,7.98900986]
[1672536016050,5.64401554,1195.4,1195.3,11.12531889]
[1672536016368,5.64401554,1195.4,1195.3,7.98900986]
[1672536019312,5.64401554,1195.4,1195.3,11.12531889]
[1672536019831,5.64401554,1195.4,1195.3,7.98900986]
[1672536021725,5.64401554,1195.4,1195.3,11.12531889]
[1672536021932,5.64401554,1195.4,1195.3,7.98900986]
[1672536022140,5.64401554,1195.4,1195.3,11.12531889]
[1672536022348,5.64401554,1195.4,1195.3,7.98900986]
[1672536024247,5.64401554,1195.4,1195.3,11.12531889]
[1672536025090,5.64401554,1195.4,1195.3,7.98900986]
[1672536028765,3.13472729,1195.4,1195.3,7.98900986]
[1672536028968,5.64399423,1195.4,1195.3,7.98900986]
[1672536029289,3.13472729,1195.4,1195.3,7.98900986]
[1672536031397,3.13472729,1195.4,1195.3,6.50593444]
[1672536033700,3.13472729,1195.4,1195.3,8.3850799]
[1672536035267,3.13472729,1195.4,1195.3,6.50593444]
[1672536036227,3.13472729,1195.4,1195.3,7.98907784]
[1672536038962,3.13472729,1195.4,1195.3,8.38557049]
[1672536040740,7.26089216,1195.5,1195.3,5.87963605]
[1672536040957,7.26089216,1195.5,1195.4,1.25313145]
[1672536041795,7.26089216,1195.5,1195.4,3.1327675]
[1672536044422,7.26089216,1195.5,1195.4,1.25313145]
[1672536045263,7.26089216,1195.5,1195.4,3.1327675]
[1672536048097,7.26089216,1195.5,1195.4,1.25313145]
[1672536057024,7.26089216,1195.5,1195.3,7.1327675]
[1672536057970,3.13629626,1195.4,1195.3,5.87963605]
[1672536065018,7.26089216,1195.5,1195.3,5.87963605]
[1672536065335,7.26089216,1195.5,1195.4,1.2523057]
[1672536067119,7.26089216,1195.5,1195.3,7.13194175]
[1672536067331,11.64228112,1195.5,1195.3,7.13194175]
[1672536068592,4.38138896,1195.4,1195.2,4.7523057]
[1672536068905,3.76089216,1195.3,1195.2,5.2523057]
[1672536069222,7.76089216,1195.3,1195.2,5.2523057]
[1672536069964,7.76089216,1195.3,1195.2,4.0]
[1672536071430,7.76089216,1195.3,1195.1,5.2523057]
[1672536072171,3.13324885,1195.2,1195.1,4.0]
[1672536072487,7.76089216,1195.3,1195.1,4.0]
[1672536072800,7.76089216,1195.3,1195.2,0.00505242]
[1672536077955,4.0,1195.3,1195.2,0.00505242]
[1672536079315,7.76089216,1195.3,1195.2,0.00505242]
[1672536079843,4.0,1195.3,1195.2,0.00505242]
[1672536081003,7.76089216,1195.3,1195.2,0.00505242]
[1672536082057,4.0,1195.3,1195.2,0.00505242]
[1672536096135,7.76089216,1195.3,1195.2,0.00505242]
[1672536099718,12.14228112,1195.3,1195.2,0.00505242]
[1672536100660,7.76089216,1195.3,1195.2,0.00505242]
[1672536104125,12.14228112,1195.3,1195.2,0.00505242]
[1672536106107,8.38138896,1195.3,1195.2,0.00505242]
[1672536107278,12.14377877,1195.3,1195.2,0.00505242]
[1672536108007,8.38138896,1195.3,1195.2,0.00505242]
[1672536109477,12.14665841,1195.3,1195.2,0.00505242]
[1672536112314,8.38138896,1195.3,1195.2,0.00505242]
[1672536113582,12.14689229,1195.3,1195.2,0.00505242]
[1672536114002,8.38138896,1195.3,1195.2,0.00505242]
[1672536132290,4.0,1195.3,1195.2,0.00505242]
[1672536132606,9.00629911,1195.3,1195.2,0.00505242]
[1672536133029,13.39931245,1195.3,1195.2,0.00505242]
[1672536140489,8.39301334,1195.3,1195.2,0.00505242]
[1672536140917,8.39301334,1195.3,1195.2,0.00059522]
[1672536144486,13.39931245,1195.3,1195.2,0.00059522]
[1672536146698,9.00629911,1195.3,1195.2,0.00059522]
[1672536148064,13.39916252,1195.3,1195.2,0.00059522]
[1672536148692,9.00629911,1195.3,1195.2,0.00059522]
[1672536149321,13.39916375,1195.3,1195.2,0.00059522]
[1672536150577,9.00629911,1195.3,1195.2,0.00059522]
[1672536153427,13.39946959,1195.3,1195.2,0.00059522]
[1672536153743,13.39946959,1195.3,1195.2,1.25290092]
[1672536153744,7.76522226,1195.3,1195.2,1.25290092]
[1672536153952,7.76522226,1195.3,1195.2,4.75290092]
[1672536154470,7.76522226,1195.3,1195.2,3.50059522]
[1672536163409,7.76522226,1195.3,1195.2,3.5]
[1672536173920,7.75875969,1195.3,1195.2,3.5]
[1672536183363,7.75875969,1195.3,1195.1,1.2523057]
[1672536183579,3.76522226,1195.2,1195.0,17.98161436]
[1672536183787,3.13595296,1195.1,1195.0,17.98161436]
[1672536184737,3.13595296,1195.1,1195.0,16.72930866]
[1672536185577,3.13595296,1195.1,1195.0,17.98035135]
[1672536185782,3.13595296,1195.1,1195.0,16.72930866]
[1672536189463,3.13595296,1195.1,1195.0,17.98053738]
[1672536190093,3.13595296,1195.1,1195.0,16.72930866]
[1672536194407,3.76522226,1195.2,1195.0,17.98105324]
[1672536194620,3.76522226,1195.2,1195.1,1.25174458]
[1672536198533,12.15193017,1195.3,1195.1,1.25174458]
[1672536198853,12.15193017,1195.3,1195.2,3.5]
[1672536205676,7.75875969,1195.3,1195.2,3.5]
[1672536206616,7.75875969,1195.3,1195.1,3.13008743]
[1672536206831,12.15193017,1195.3,1195.2,3.5]
[1672536207139,8.38670791,1195.3,1195.2,3.5]
[1672536207672,12.15159875,1195.3,1195.2,3.5]
[1672536211456,7.75842827,1195.3,1195.2,3.5]
[1672536211659,3.76489084,1195.3,1195.2,3.5]
[1672536211878,7.76489084,1195.3,1195.2,4.75174458]
[1672536212610,7.76489084,1195.3,1195.2,3.5]
[1672536213658,7.76489084,1195.3,1195.2,4.75174458]
[1672536214224,7.76489084,1195.3,1195.2,3.5]
[1672536216089,12.15806132,1195.3,1195.2,3.5]
[1672536216297,7.76489084,1195.3,1195.2,3.5]
[1672536218501,8.39317048,1195.3,1195.2,3.5]
[1672536220924,12.15822939,1195.3,1195.2,3.5]
[1672536221656,8.39317048,1195.3,1195.2,3.5]
[1672536225328,12.15838792,1195.3,1195.2,3.5]
[1672536229113,8.39317048,1195.3,1195.2,3.5]
[1672536234776,12.1588957,1195.3,1195.2,3.5]
[1672536235196,8.39317048,1195.3,1195.2,3.5]
[1672536239732,12.15912163,1195.3,1195.2,3.5]
[1672536240455,8.39317048,1195.3,1195.2,3.5]
[1672536240774,12.15909462,1195.3,1195.2,3.5]
[1672536241300,8.39317048,1195.3,1195.2,3.5]
[1672536253480,7.76576403,1195.3,1195.2,16.91643365]
[1672536253797,3.13796105,1195.3,1195.2,16.29228066]
[1672536254007,3.13796105,1195.3,1195.2,17.77554544]
[1672536254626,5.64586756,1195.3,1195.2,18.16872492]
[1672536255358,5.64586756,1195.3,1195.2,15.66279048]
[1672536255578,3.13796105,1195.3,1195.2,15.66279048]
[1672536256414,5.64510749,1195.3,1195.2,16.91348484]
[1672536256622,3.13796105,1195.3,1195.2,16.91348484]
[1672536258212,2.50651387,1195.3,1195.2,16.91348484]
[1672536258739,5.64447492,1195.3,1195.2,16.91348484]
[1672536260212,2.50651387,1195.3,1195.2,16.91348484]
[1672536261262,5.64447492,1195.3,1195.2,16.91348484]
[1672536262208,2.50651387,1195.3,1195.2,16.91348484]
[1672536262418,5.64447492,1195.3,1195.2,16.91348484]
[1672536263576,2.50651387,1195.3,1195.2,25.27848484]
[1672536268517,2.50651387,1195.3,1195.2,23.40204058]
[1672536268728,2.50651387,1195.3,1195.2,25.27848484]
[1672536271356,2.50651387,1195.3,1195.2,23.40204058]
[1672536272195,2.50651387,1195.3,1195.2,25.27848484]
[1672536274932,2.50651387,1195.3,1195.2,23.40204058]
[1672536277770,2.50651387,1195.3,1195.2,25.27848484]
[1672536278085,2.50651387,1195.3,1195.2,23.40204058]
[1672536278398,2.50651387,1195.3,1195.2,25.27848484]
[1672536281444,1.87890474,1195.3,1195.2,24.65728066]
[1672536281651,4.38541861,1195.5,1195.3,10.57255029]
[1672536281863,1.87890474,1195.5,1195.4,4.37358175]
[1672536282176,1.87890474,1195.5,1195.4,3.65337262]
[1672536282392,1.87890474,1195.5,1195.4,5.52868562]
[1672536282704,1.84980474,1195.5,1195.4,5.52868562]
[1672536283121,0.69370474,1195.5,1195.4,5.52868562]
[1672536284595,0.69370474,1195.5,1195.4,6.7772289]
[1672536285010,0.69370474,1195.5,1195.4,6.77733662]
[1672536285335,0.69370474,1195.5,1195.4,5.52868562]
[1672536286166,0.69370474,1195.5,1195.4,6.77744035]
[1672536290058,0.69370474,1195.5,1195.4,5.52868562]
[1672536290267,2.50651387,1195.6,1195.4,5.52868562]
[1672536290476,2.50651387,1195.6,1195.4,6.77713282]
[1672536291637,2.50651387,1195.6,1195.5,1.2484472]
[1672536292264,2.50651387,1195.6,1195.5,4.7484472]
[1672536296265,2.50651387,1195.6,1195.5,3.5]
[1672536296578,6.00651387,1195.6,1195.5,4.7484472]
[1672536298676,6.00651387,1195.6,1195.5,3.5]
[1672536300155,9.64447492,1195.7,1195.5,4.7484472]
[1672536300465,6.50651387,1195.7,1195.5,4.7484472]
[1672536300676,9.64447492,1195.7,1195.5,4.7484472]
[1672536300890,5.50651387,1195.6,1195.5,3.5]
[1672536301938,3.0,1195.6,1195.5,4.7484472]
[1672536302255,5.50651387,1195.6,1195.5,3.5]
[1672536303090,3.0,1195.6,1195.5,4.7484472]
[1672536303294,5.50651387,1195.6,1195.5,4.7484472]
[1672536303504,5.50651387,1195.6,1195.5,3.5]
[1672536304141,3.0,1195.6,1195.5,4.7484472]
[1672536304344,5.50651387,1195.6,1195.5,4.7484472]
[1672536304554,5.50651387,1195.6,1195.5,3.5]
[1672536305297,5.50651387,1195.6,1195.5,4.7484472]
[1672536305509,3.0,1195.6,1195.5,4.7484472]
[1672536305721,5.50651387,1195.6,1195.5,3.5]
[1672536312765,8.64447492,1195.6,1195.5,3.5]
[1672536313603,5.50651387,1195.6,1195.5,3.5]
[1672536314234,8.64447492,1195.6,1195.5,4.7484472]
[1672536314445,8.64447492,1195.6,1195.5,1.2484472]
[1672536314752,6.13796105,1195.6,1195.4,8.27713282]
[1672536314968,2.50434959,1195.5,1195.4,8.27713282]
[1672536315593,2.50434959,1195.5,1195.4,6.40263025]
[1672536316230,2.50434959,1195.5,1195.4,8.27713282]
[1672536318009,2.50434959,1195.5,1195.4,2.40263025]
[1672536318010,3.13796105,1195.5,1195.4,2.40263025]
[1672536318220,3.13796105,1195.5,1195.3,13.69550006]
[1672536318432,3.00557729,1195.4,1195.3,13.69550006]
[1672536318641,6.14353834,1195.4,1195.3,13.69550006]
[1672536319060,3.00557729,1195.4,1195.3,12.44705286]
[1672536319379,6.14353834,1195.4,1195.3,13.69755945]
[1672536320219,3.63796105,1195.4,1195.3,12.44705286]
[1672536320866,6.14549889,1195.4,1195.3,12.44705286]
[1672536321178,6.14549889,1195.4,1195.3,14.94624243]
[1672536322544,3.00753784,1195.4,1195.3,14.94624243]
[1672536322757,6.14549889,1195.4,1195.3,14.94624243]
[1672536323068,3.00753784,1195.4,1195.3,14.94624243]
[1672536324013,2.50753784,1195.4,1195.3,14.94624243]
[1672536324531,2.50753784,1195.4,1195.3,12.44705286]
[1672536325583,2.50753784,1195.4,1195.3,14.94624243]
[1672536327375,2.50753784,1195.4,1195.3,12.44705286]
[1672536329999,3.13796105,1195.4,1195.3,11.82306426]
[1672536332951,5.6436777,1195.4,1195.3,11.82306426]
[1672536333896,5.64368103,1195.4,1195.3,11.82306426]
[1672536338206,5.64368103,1195.4,1195.3,13.69756683]
[1672536339467,2.50571998,1195.4,1195.3,13.69756683]
[1672536340203,5.64368103,1195.4,1195.3,13.69756683]
[1672536341987,2.50571998,1195.4,1195.3,13.69756683]
[1672536344826,5.64368103,1195.4,1195.3,13.69756683]
[1672536346923,3.13796105,1195.4,1195.3,13.69756683]
[1672536347351,3.13796105,1195.4,1195.3,12.44705286]
[1672536347656,5.64498994,1195.4,1195.3,12.44705286]
[1672536348708,2.50702889,1195.4,1195.3,14.94624243]
[1672536348922,5.64498994,1195.4,1195.3,12.44705286]
[1672536350182,2.50702889,1195.4,1195.3,14.94624243]
[1672536350491,5.64498994,1195.4,1195.3,12.44705286]
[1672536350911,5.64498994,1195.4,1195.3,14.94624243]
[1672536352491,3.13796105,1195.4,1195.3,12.44705286]
[1672536352906,3.13796105,1195.4,1195.3,14.94624243]
[1672536353327,3.13026266,1195.4,1195.3,14.61669214]
[1672536354068,3.13026266,1195.4,1195.3,12.11750257]
[1672536354384,3.13026266,1195.4,1195.3,14.61669214]
[1672536354593,3.13026266,1195.4,1195.3,12.11750257]
[1672536355006,3.13026266,1195.4,1195.3,14.61669214]
[1672536356914,3.13026266,1195.4,1195.3,14.22532529]
[1672536357332,3.13026266,1195.4,1195.3,14.22531746]
[1672536358591,3.13026266,1195.4,1195.3,5.86031746]
[1672536358803,3.13026266,1195.4,1195.3,8.75519489]
[1672536362578,3.76576403,1195.5,1195.3,1.25241576]
[1672536362794,3.76576403,1195.4,1195.3,1.25241576]
[1672536363111,3.76576403,1195.4,1195.3,7.13042108]
[1672536363315,4.26576403,1195.4,1195.3,5.25241576]
[1672536363628,3.76576403,1195.4,1195.3,5.25241576]
[1672536363834,3.76576403,1195.5,1195.3,5.87800532]
[1672536364050,3.76576403,1195.5,1195.4,1.25184329]
[1672536368670,3.76576403,1195.5,1195.4,3.12984861]
[1672536369194,3.76576403,1195.5,1195.4,1.25184329]
[1672536374772,3.76576403,1195.5,1195.3,7.12984861]
[1672536375296,3.76576403,1195.5,1195.4,1.25184329]
[1672536380231,11.15893451,1195.6,1195.4,3.12984861]
[1672536382031,11.15893451,1195.6,1195.4,1.25184329]
[1672536387495,3.76576403,1195.5,1195.4,1.25184329]
[1672536399265,3.76576403,1195.5,1195.4,3.12984861]
[1672536399580,3.1365758,1195.5,1195.4,1.87800532]
[1672536402842,3.1365758,1195.5,1195.4,3.12838258]
[1672536403050,3.1365758,1195.5,1195.4,3.12827808]
[1672536403268,3.1365758,1195.5,1195.4,1.87800532]
[1672536404529,6.76576403,1195.6,1195.4,3.12839921]
[1672536408523,6.76576403,1195.6,1195.4,1.25039389]
[1672536408734,11.15893451,1195.6,1195.4,1.25039389]
[1672536409468,6.76576403,1195.6,1195.4,3.12839921]
[1672536411253,11.15893451,1195.6,1195.4,3.12839921]
[1672536412621,6.76576403,1195.6,1195.4,3.12839921]
[1672536417353,6.76576403,1195.6,1195.4,1.25039389]
[1672536417667,11.15893451,1195.6,1195.4,3.12839921]
[1672536421243,11.15893451,1195.6,1195.4,1.25039389]
[1672536423971,3.76576403,1195.5,1195.4,1.25039389]
[1672536428819,11.15893451,1195.6,1195.4,3.12839921]
[1672536429140,11.15893451,1195.6,1195.4,1.25039389]
[1672536431341,3.76576403,1195.5,1195.4,1.25039389]
[1672536448592,3.76576403,1195.5,1195.4,3.12839921]
[1672536449008,6.76576403,1195.6,1195.4,3.12839921]
[1672536449218,11.15893451,1195.6,1195.4,3.12839921]
[1672536450897,3.76576403,1195.5,1195.4,1.25039389]
[1672536460782,3.76576403,1195.5,1195.4,3.12839921]
[1672536470660,11.15893451,1195.6,1195.4,3.12839921]
[1672536471079,3.76576403,1195.5,1195.4,3.12839921]
[1672536474443,3.76576403,1195.5,1195.4,1.25039389]
[1672536475172,3.76576403,1195.5,1195.4,3.12839921]
[1672536479700,11.15893451,1195.6,1195.4,3.12839921]
[1672536480432,3.76576403,1195.5,1195.4,3.12839921]
[1672536484534,3.76576403,1195.5,1195.4,1.25039389]
[1672536487051,3.76576403,1195.5,1195.4,3.12839921]
[1672536488733,3.76576403,1195.5,1195.4,1.25039389]
[1672536493147,3.76576403,1195.5,1195.4,3.12839921]
[1672536493560,11.15893451,1195.6,1195.4,1.87800532]
[1672536493766,11.15893451,1195.6,1195.4,3.12906099]
[1672536497981,6.76576403,1195.6,1195.5,1.25105567]
[1672536499760,11.15893451,1195.6,1195.5,1.25105567]
[1672536502074,6.76576403,1195.6,1195.5,1.25105567]
[1672536505968,6.76576403,1195.6,1195.4,3.12906099]
[1672536506180,11.15893451,1195.6,1195.4,3.12906099]
[1672536506809,6.76576403,1195.6,1195.5,1.25105567]
[1672536511012,6.76576403,1195.6,1195.4,3.12906099]
[1672536511226,11.15893451,1195.6,1195.4,3.12906099]
[1672536513321,6.76576403,1195.6,1195.4,3.12906099]
[1672536513640,11.15893451,1195.6,1195.4,3.12906099]
[1672536524573,3.76576403,1195.5,1195.4,1.25105567]
[1672536528911,3.76576403,1195.5,1195.4,3.12906099]
[1672536529651,3.76576403,1195.5,1195.4,1.25105567]
[1672536530065,3.76576403,1195.5,1195.4,3.12906099]
[1672536530809,11.15893451,1195.6,1195.4,3.12906099]
[1672536534386,3.76576403,1195.5,1195.4,3.12906099]
[1672536538055,3.76576403,1195.5,1195.4,1.25105567]
[1672536541413,3.76576403,1195.5,1195.4,3.12906099]
[1672536541729,11.15893451,1195.6,1195.4,3.12906099]
[1672536543201,3.76576403,1195.5,1195.4,3.12906099]
[1672536543723,11.15893451,1195.6,1195.4,3.12906099]
[1672536546346,11.15893451,1195.6,1195.5,1.25105567]
[1672536546870,6.76576403,1195.6,1195.5,1.25105567]
[1672536547300,11.15893451,1195.6,1195.5,1.25105567]
[1672536547493,11.15893451,1195.6,1195.4,3.12906099]
[1672536548452,11.15893451,1195.6,1195.5,1.25105567]
[1672536548765,11.15893451,1195.6,1195.4,3.12906099]
[1672536549076,6.76576403,1195.6,1195.5,1.25105567]
[1672536559149,6.76576403,1195.6,1195.4,3.12906099]
[1672536562613,3.76576403,1195.6,1195.4,3.12906099]
[1672536562821,3.76576403,1195.6,1195.5,1.25105567]
[1672536563035,12.15893451,1195.7,1195.5,6.62906099]
[1672536564196,3.76576403,1195.6,1195.5,6.62906099]
[1672536564406,12.15893451,1195.7,1195.5,6.62906099]
[1672536565664,7.76576403,1195.7,1195.5,6.62906099]
[1672536567244,12.15893451,1195.7,1195.5,4.75105567]
[1672536575440,3.76576403,1195.6,1195.5,4.75105567]
[1672536577228,3.76576403,1195.6,1195.5,3.5]
[1672536581964,3.76576403,1195.6,1195.5,4.75105567]
[1672536582175,3.76576403,1195.6,1195.5,3.5]
[1672536588053,3.76576403,1195.6,1195.5,4.75105567]
[1672536588265,3.76576403,1195.6,1195.5,3.5]
[1672536588471,3.76576403,1195.6,1195.5,4.75105567]
[1672536600133,3.76576403,1195.6,1195.5,13.11605567]
[1672536600345,12.15893451,1195.7,1195.5,4.75105567]
[1672536601296,3.76576403,1195.6,1195.5,3.5]
[1672536603715,3.76576403,1195.6,1195.5,4.75105567]
[1672536603926,3.76576403,1195.6,1195.5,3.5]
[1672536604976,3.76576403,1195.6,1195.5,4.75105567]
[1672536605500,3.76576403,1195.6,1195.5,3.5]
[1672536606232,3.76576403,1195.6,1195.5,4.75105567]
[1672536606448,3.76576403,1195.6,1195.5,3.5]
[1672536606652,3.76576403,1195.6,1195.5,4.75105567]
[1672536613397,8.15893451,1195.6,1195.5,4.75105567]
[1672536613608,3.76576403,1195.6,1195.5,4.75105567]
[1672536615185,8.15893451,1195.6,1195.5,4.75105567]
[1672536615817,3.76576403,1195.6,1195.5,4.75105567]
[1672536619487,3.76576403,1195.6,1195.5,6.62906099]
[1672536621274,3.76576403,1195.6,1195.5,4.75105567]
[1672536622436,3.76576403,1195.6,1195.5,6.62906099]
[1672536622640,3.76576403,1195.6,1195.5,4.75105567]
[1672536623062,3.76576403,1195.6,1195.5,6.62906099]
[1672536624861,3.76576403,1195.6,1195.5,4.75105567]
[1672536626125,3.76576403,1195.6,1195.5,6.62906099]
[1672536626647,12.15893451,1195.7,1195.5,6.62906099]
[1672536627281,3.76576403,1195.6,1195.5,6.62906099]
[1672536628017,12.15893451,1195.7,1195.5,6.62906099]
[1672536634424,12.15893451,1195.7,1195.5,4.75105567]
[1672536634633,3.76576403,1195.6,1195.5,4.75105567]
[1672536636111,12.15893451,1195.7,1195.5,4.75105567]
[1672536637058,12.15893451,1195.7,1195.5,6.62906099]
[1672536637476,12.15893451,1195.7,1195.5,4.75105567]
[1672536639052,12.15893451,1195.7,1195.5,6.62906099]
[1672536642731,12.15893451,1195.7,1195.5,4.75105567]
[1672536643144,3.76576403,1195.6,1195.5,4.75105567]
[1672536651674,3.76576403,1195.6,1195.5,3.5]
[1672536653457,8.15893451,1195.6,1195.5,3.5]
[1672536654829,3.76576403,1195.6,1195.5,3.5]
[1672536655143,8.15893451,1195.6,1195.5,3.5]
[1672536656299,3.76576403,1195.6,1195.5,3.5]
[1672536656615,8.15708404,1195.6,1195.5,3.5]
[1672536659980,3.76391356,1195.6,1195.5,3.5]
[1672536660703,0.00394719,1195.5,1195.3,5.25105567]
[1672536661026,3.5,1195.3,1195.2,1.25105567]
[1672536661436,3.76391356,1195.4,1195.2,14.09911027]
[1672536661649,3.13638317,1195.3,1195.2,12.8480546]
[1672536662077,3.13638317,1195.3,1195.2,15.34724417]
[1672536662286,3.13638317,1195.3,1195.2,13.46923885]
[1672536662709,5.64450733,1195.3,1195.2,15.34577427]
[1672536663647,2.50812416,1195.3,1195.2,13.46923885]
[1672536663865,2.50812416,1195.3,1195.2,15.34591037]
[1672536663866,5.64450733,1195.3,1195.2,15.34591037]
[1672536664067,3.13638317,1195.3,1195.2,12.8467208]
[1672536664278,3.13638317,1195.3,1195.2,1.87667152]
[1672536664489,3.13638317,1195.3,1195.2,7.12764275]
[1672536664910,3.13638317,1195.3,1195.2,5.25097123]
[1672536665858,3.13638317,1195.3,1195.2,5.24837196]
[1672536666485,3.13638317,1195.3,1195.2,7.12504348]
[1672536666802,3.13638317,1195.3,1195.2,5.24837196]
[1672536670694,3.13638317,1195.3,1195.2,3.99740073]
[1672536670901,3.13638317,1195.3,1195.2,5.24837196]
[1672536671117,5.64183407,1195.3,1195.2,5.24837196]
[1672536671434,3.13638317,1195.3,1195.2,5.24837196]
[1672536672482,5.64155638,1195.3,1195.2,5.24837196]
[1672536673319,3.13638317,1195.3,1195.2,5.24837196]
[1672536673528,5.64154857,1195.3,1195.2,5.24837196]
[1672536674360,3.13638317,1195.3,1195.2,5.24837196]
[1672536674577,5.64133439,1195.3,1195.2,5.24837196]
[1672536676161,3.13638317,1195.3,1195.2,5.24837196]
[1672536676372,5.64127689,1195.3,1195.2,5.24837196]
[1672536676584,2.50489372,1195.3,1195.2,5.24837196]
[1672536677523,5.64127689,1195.3,1195.2,5.24837196]
[1672536683098,3.13638317,1195.3,1195.2,5.24837196]
[1672536685301,5.64205556,1195.3,1195.2,24.39232797]
[1672536686767,3.13059576,1195.3,1195.2,5.24837196]
[1672536686983,3.13059576,1195.3,1195.2,3.99740073]
[1672536688981,3.13059576,1195.3,1195.2,5.24837196]
[1672536690872,3.13059576,1195.3,1195.2,7.12504348]
[1672536691296,3.13059576,1195.3,1195.2,5.24837196]
[1672536692336,7.76391356,1195.4,1195.2,3.99740073]
[1672536693818,12.15708404,1195.4,1195.2,3.99740073]
[1672536695908,3.76391356,1195.3,1195.2,3.99740073]
[1672536696336,12.15708404,1195.4,1195.2,3.99740073]
[1672536696867,3.76391356,1195.3,1195.2,3.99740073]
[1672536698551,12.15708404,1195.4,1195.2,3.99740073]
[1672536698866,12.15708404,1195.4,1195.2,5.24837196]
[1672536699075,3.76391356,1195.3,1195.2,5.24837196]
[1672536699495,12.15708404,1195.4,1195.2,5.24837196]
[1672536700649,3.76391356,1195.3,1195.2,5.24837196]
[1672536700865,12.15708404,1195.4,1195.2,5.24837196]
[1672536701175,3.76391356,1195.3,1195.2,5.24837196]
[1672536701808,3.76391356,1195.3,1195.2,3.99740073]
[1672536702221,8.15708404,1195.3,1195.2,3.99740073]
[1672536702533,3.76391356,1195.3,1195.2,3.99740073]
[1672536726503,3.76391356,1195.3,1195.2,5.24837196]
[1672536726823,3.76391356,1195.3,1195.2,3.99740073]
[1672536727030,3.76391356,1195.3,1195.2,5.24837196]
[1672536733561,8.15708404,1195.3,1195.2,3.99740073]
[1672536733768,3.76391356,1195.3,1195.2,3.99740073]
[1672536733981,3.76391356,1195.3,1195.2,5.24837196]
[1672536735030,3.76391356,1195.3,1195.2,3.99740073]
[1672536735553,3.76391356,1195.3,1195.2,5.24837196]
[1672536737337,3.76391356,1195.3,1195.2,3.99740073]
[1672536737970,8.15708404,1195.3,1195.2,3.99740073]
[1672536739551,3.76391356,1195.3,1195.2,5.24837196]
[1672536742596,8.15708404,1195.3,1195.2,5.24837196]
[1672536743016,3.76391356,1195.3,1195.2,5.24837196]
[1672536751849,3.76391356,1195.3,1195.2,5.24491985]
[1672536752378,8.15708404,1195.3,1195.2,5.24491985]
[1672536758068,3.76391356,1195.3,1195.2,5.24491985]
[1672536758268,8.15708404,1195.3,1195.2,5.24491985]
[1672536764263,3.76391356,1195.3,1195.2,5.24491985]
[1672536769307,8.15708404,1195.3,1195.2,5.24491985]
[1672536769622,3.76391356,1195.3,1195.2,5.24491985]
[1672536772566,8.15708404,1195.3,1195.2,5.24491985]
[1672536772777,3.76391356,1195.3,1195.2,5.24491985]
[1672536778982,8.15708404,1195.3,1195.2,5.24491985]
[1672536779817,8.15708404,1195.3,1195.2,3.99394862]
[1672536780036,4.39317048,1195.3,1195.2,5.24491985]
[1672536780557,4.39317048,1195.3,1195.2,3.99394862]
[1672536780872,4.39317048,1195.3,1195.2,5.24491985]
[1672536781081,4.39317048,1195.3,1195.2,3.99394862]
[1672536790954,9.39946959,1195.3,1195.2,3.99394862]
[1672536791377,5.00629911,1195.3,1195.2,3.99394862]
[1672536792745,9.39849762,1195.3,1195.2,3.99394862]
[1672536792956,4.39219851,1195.3,1195.2,3.99394862]